Workbook

Sheet 1.Conjunto de datos (remuneraci
A1: Numeración | B1: PUESTO INSTITUCIONAL | C1: Régimen laboral al que pertenece | D1: Número de partida presupuestaria | E1: Grado jerárquico o escala al que pertenece el puesto | F1: Remuneración mensual unificada | G1: Remuneración unificada (anual) | H1: Décimo Tercera Remuneración | I1: Décima Cuarta Remuneración | J1: Horas suplementarias y extraordinarias | K1: Encargos y subrogaciones | L1: Total ingresos adicionales
A2: 1 | B2: PROCURADOR SINDICO | C2: 05-SERVIDOR/FUNCIONARIO SERVICIO PÚBLICO | D2: 5.1.01.05 | E2: N/A | F2: 1670.00 | G2: =F2*12 -> 20,040.00 | H2: =F2/12 -> 139.17 | I2: =460/12 -> 38.33 | J2: 0.00 | K2: 0.00 | L2: =F2+H2+I2 -> 1847.50
A3: 2 | B3: ASISTENTE TECNICO DE ALCALDIA | C3: 05-SERVIDOR/FUNCIONARIO SERVICIO PÚBLICO | D3: 5.1.01.05 | E3: N/A | F3: 755.00 | G3: =F3*12 -> 9,060.00 | H3: =F3/12 -> 62.92 | I3: =460/12 -> 38.33 | J3: 0.00 | K3: 0.00 | L3: =F3+H3+I3 -> 856.25
A4: 3 | B4: CONCEJAL URBANO | C4: 05-SERVIDOR/FUNCIONARIO SERVICIO PÚBLICO | D4: 5.1.01.05 | E4: J/N | F4: 1750.00 | G4: 21,000.00 | H4: =F4/12 -> 145.83 | I4: 38.33 | J4: 0.00 | K4: 0.00 | L4: 1934.17
A5: 4 | B5: MIEMBRO 1 DE LA JUNTA CANTONAL DE PROTECCION DE DERECHOS | C5: 05-SERVIDOR/FUNCIONARIO SERVICIO PÚBLICO | D5: 7.1.05.10 | E5: N/A | F5: 820.00 | G5: 9,840.00 | H5: 68.33 | I5: 38.33 | J5: 0.00 | K5: 0.00 | L5: 926.67
A6: 5 | B6: ASISTENTE TECNICO DE COMUNICACION Y DISEÑO GRAFICO | C6: 05-SERVIDOR/FUNCIONARIO SERVICIO PÚBLICO | D6: 7.1.05.10 | E6: N/A | F6: 570.00 | G6: 6,840.00 | H6: 47.50 | I6: 38.33 | J6: 0.00 | K6: 0.00 | L6: 655.83
A7: 6 | B7: ANALISTA DE TRABAJO SOCIAL | C7: 05-SERVIDOR/FUNCIONARIO SERVICIO PÚBLICO | D7: 5.1.01.05 | E7: N/A | F7: 820.00 | G7: 9,840.00 | H7: 68.33 | I7: 38.33 | J7: 0.00 | K7: 0.00 | L7: 926.67
A8: 7 | B8: ASISTENTE TECNICO DE PRESUPUESTO | C8: 05-SERVIDOR/FUNCIONARIO SERVICIO PÚBLICO | D8: 7.1.05.10 | E8: N/A | F8: 755.00 | G8: 9,060.00 | H8: 62.92 | I8: 38.33 | J8: 0.00 | K8: 0.00 | L8: 856.25
A9: 8 | B9: ASISTENTE ADMINISTRATIVO DEL CENTRO DE FAENAMIENTO Y COMERCIO DE ANIMALES | C9: 05-SERVIDOR/FUNCIONARIO SERVICIO PÚBLICO | D9: 5.1.01.05 | E9: N/A | F9: 622.00 | G9: 7,464.00 | H9: 51.83 | I9: 38.33 | J9: 0.00 | K9: 0.00 | L9: 712.17
A10: 9 | B10: JEFATURA FINANCIERA | C10: 05-SERVIDOR/FUNCIONARIO SERVICIO PÚBLICO | D10: 7.1.01.05 | E10: N/A | F10: 1110.00 | G10: 13,320.00 | H10: 92.50 | I10: 38.33 | J10: 0.00 | K10: 0.00 | L10: 1240.83
A11: 10 | B11: ASISTENTE TÉCNICO DE AVALUOS Y CATASTROS | C11: 05-SERVIDOR/FUNCIONARIO SERVICIO PÚBLICO | D11: 7.1.05.10 | E11: N/A | F11: 755.00 | G11: 9,060.00 | H11: 62.92 | I11: 38.33 | J11: 0.00 | K11: 0.00 | L11: 856.25
A12: 11 | B12: DIGITALIZADOR DE LA UTMTTTSV | C12: 05-SERVIDOR/FUNCIONARIO SERVICIO PÚBLICO | D12: 5.1.01.05 | E12: N/A | F12: 622.00 | G12: =F12*12 -> 7,464.00 | H12: 51.83 | I12: 38.33 | J12: 0.00 | K12: 0.00 | L12: 712.17
A13: 12 | B13: MEDICO JEFE DE LA USO | C13: 05-SERVIDOR/FUNCIONARIO SERVICIO PÚBLICO | D13: 5.1.01.06 | E13: N/A | F13: 1110.00 | G13: 13,320.00 | H13: 92.50 | I13: 38.33 | J13: 0.00 | K13: 0.00 | L13: 1240.83
A14: 13 | B14: PROSECRETARIA | C14: 05-SERVIDOR/FUNCIONARIO SERVICIO PÚBLICO | D14: 7.1.05.10 | E14: N/A | F14: 755.00 | G14: 9,060.00 | H14: 62.92 | I14: 38.33 | J14: 0.00 | K14: 0.00 | L14: 856.25
A15: 14 | B15: ASISTENTE ADMINISTRATIVO DE CEMENTERIOS | C15: 05-SERVIDOR/FUNCIONARIO SERVICIO PÚBLICO | D15: 7.1.05.10 | E15: N/A | F15: 622.00 | G15: 7,464.00 | H15: 51.83 | I15: 38.33 | J15: 0.00 | K15: 0.00 | L15: 712.17
A16: 15 | B16: DIRECTOR DE PLANIFICACION PATRIMONIO AVALUOS Y CATASTROS. | C16: 05-SERVIDOR/FUNCIONARIO SERVICIO PÚBLICO | D16: 5.1.01.05 | E16: N/A | F16: 1670.00 | G16: 20,040.00 | H16: 139.17 | I16: 38.33 | J16: 0.00 | K16: 0.00 | L16: 1847.50
A17: 16 | B17: PROMOTOR SOCIAL ATENCION DOMICILIARIA PERSONAS ADULTAS | C17: 05-SERVIDOR/FUNCIONARIO SERVICIO PÚBLICO | D17: 5.1.01.05 | E17: N/A | F17: 986.00 | G17: 11,832.00 | H17: 82.17 | I17: 38.33 | J17: 0.00 | K17: 0.00 | L17: 1106.50
A18: 17 | B18: ASISTENTE ADMINISTRATIVO DE LA UNIDAD DE TURISMO | C18: 05-SERVIDOR/FUNCIONARIO SERVICIO PÚBLICO | D18: 7.1.05.10 | E18: N/A | F18: 622.00 | G18: 7,464.00 | H18: 51.83 | I18: 38.33 | J18: 0.00 | K18: 0.00 | L18: 712.17
A19: 18 | B19: AUXILIAR DE SALUD OCUPACIONAL | C19: 05-SERVIDOR/FUNCIONARIO SERVICIO PÚBLICO | D19: 7.1.01.05 | E19: N/A | F19: 755.00 | G19: 9,060.00 | H19: 62.92 | I19: 38.33 | J19: 0.00 | K19: 0.00 | L19: 856.25
A20: 19 | B20: FACILITADOR ATENCION EN EL HOGAR Y LA COMUNIDAD PERSONAS CON DISCAPACIDAD | C20: 05-SERVIDOR/FUNCIONARIO SERVICIO PÚBLICO | D20: 7.1.05.10 | E20: N/A | F20: 733.00 | G20: 8,796.00 | H20: 61.08 | I20: 38.33 | J20: 0.00 | K20: 0.00 | L20: 832.42
A21: 20 | B21: CONCEJAL URBANO | C21: 05-SERVIDOR/FUNCIONARIO SERVICIO PÚBLICO | D21: 7.1.05.10 | E21: N/A | F21: 1750.00 | G21: 21,000.00 | H21: 145.83 | I21: 38.33 | J21: 0.00 | K21: 0.00 | L21: 1934.17
A22: 21 | B22: MIEMBRO 2 DE LA JUNTA CANTONAL DE PROTECCION DE DERECHOS. | C22: 05-SERVIDOR/FUNCIONARIO SERVICIO PÚBLICO | D22: 7.1.05.10 | E22: N/A | F22: 755.00 | G22: 9,060.00 | H22: 62.92 | I22: 38.33 | J22: 0.00 | K22: 0.00 | L22: 856.25
A23: 22 | B23: COORDINADOR AMBIENTAL | C23: 05-SERVIDOR/FUNCIONARIO SERVICIO PÚBLICO | D23: 5.1.01.05 | E23: N/A | F23: 755.00 | G23: 9,060.00 | H23: 62.92 | I23: 38.33 | J23: 0.00 | K23: 0.00 | L23: 856.25
A24: 23 | B24: AISTENTE ADMINISTRO DEL REGISTRO DE LA PROPIEDAD | C24: 05-SERVIDOR/FUNCIONARIO SERVICIO PÚBLICO | D24: 7.1.05.10 | E24: N/A | F24: 622.00 | G24: 7,464.00 | H24: 51.83 | I24: 38.33 | J24: 0.00 | K24: 0.00 | L24: 712.17
A25: 24 | B25: ASISTENTE TECNICO DE PROVEEDURIA | C25: 05-SERVIDOR/FUNCIONARIO SERVICIO PÚBLICO | D25: 7.1.05.10 | E25: N/A | F25: 755.00 | G25: 9,060.00 | H25: 62.92 | I25: 38.33 | J25: 0.00 | K25: 0.00 | L25: 856.25
A26: 25 | B26: RECAUDADOR 1 | C26: 05-SERVIDOR/FUNCIONARIO SERVICIO PÚBLICO | D26: 5.1.01.05 | E26: N/A | F26: 755.00 | G26: 9,060.00 | H26: 62.92 | I26: 38.33 | J26: 0.00 | K26: 0.00 | L26: 856.25
A27: 26 | B27: JEFE FINANCIERO | C27: 05-SERVIDOR/FUNCIONARIO SERVICIO PÚBLICO | D27: 7.1.05.10 | E27: N/A | F27: 1110.00 | G27: 13,320.00 | H27: 92.50 | I27: 38.33 | J27: 0.00 | K27: 0.00 | L27: 1240.83
A28: 27 | B28: RELACIONADOR PUBLICO | C28: 05-SERVIDOR/FUNCIONARIO SERVICIO PÚBLICO | D28: 7.1.05.10 | E28: N/A | F28: 820.00 | G28: 9,840.00 | H28: 68.33 | I28: 38.33 | J28: 0.00 | K28: 0.00 | L28: 926.67
A29: 28 | B29: ANALISTA EN DESARROLLO COMUNITARIO | C29: 05-SERVIDOR/FUNCIONARIO SERVICIO PÚBLICO | D29: 5.1.01.05 | E29: N/A | F29: 820.00 | G29: 9,840.00 | H29: 68.33 | I29: 38.33 | J29: 0.00 | K29: 0.00 | L29: 926.67
A30: 29 | B30: ANALISTA DE SISTEMAS | C30: 05-SERVIDOR/FUNCIONARIO SERVICIO PÚBLICO | D30: 5.1.05.10 | E30: N/A | F30: 820.00 | G30: 9,840.00 | H30: 68.33 | I30: 38.33 | J30: 0.00 | K30: 0.00 | L30: 926.67
A31: 30 | B31: AUXILIAR DE SERVICIOS | C31: 05-SERVIDOR/FUNCIONARIO SERVICIO PÚBLICO | D31: 5.1.01.05 | E31: N/A | F31: 460.00 | G31: 5,520.00 | H31: 38.33 | I31: 38.33 | J31: 0.00 | K31: 0.00 | L31: 536.67
A32: 31 | B32: ASISTENTE TECNICO DE RENTAS | C32: 05-SERVIDOR/FUNCIONARIO SERVICIO PÚBLICO | D32: 5.1.01.05 | E32: N/A | F32: 755.00 | G32: 9,060.00 | H32: 62.92 | I32: 38.33 | J32: 0.00 | K32: 0.00 | L32: 856.25
A33: 32 | B33: JEFE DE GESTIÓN AMBIENTAL RIESGOS, ARIDOS Y PETREOS | C33: 05-SERVIDOR/FUNCIONARIO SERVICIO PÚBLICO | D33: 5.1.01.05 | E33: N/A | F33: 1110.00 | G33: 13,320.00 | H33: 92.50 | I33: 38.33 | J33: 0.00 | K33: 0.00 | L33: 1240.83
A34: 33 | B34: ANALISTA TECNICO PARA LA DIRECCION DE OBRAS PUBLICAS | C34: 05-SERVIDOR/FUNCIONARIO SERVICIO PÚBLICO | D34: 5.1.01.05 | E34: N/A | F34: 820.00 | G34: 9,840.00 | H34: 68.33 | I34: 38.33 | J34: 0.00 | K34: 0.00 | L34: 926.67
A35: 34 | B35: ASISTENTE ADMINISTRATIVO | C35: 05-SERVIDOR/FUNCIONARIO SERVICIO PÚBLICO | D35: 5.1.01.06 | E35: N/A | F35: 622.00 | G35: 7,464.00 | H35: 51.83 | I35: 38.33 | J35: 0.00 | K35: 0.00 | L35: 712.17
A36: 35 | B36: EDUCADORA CDI LLAGOS SEMILLITAS DEL PUÑAY | C36: 05-SERVIDOR/FUNCIONARIO SERVICIO PÚBLICO | D36: 7.1.05.10 | E36: N/A | F36: 460.00 | G36: 5,520.00 | H36: 38.33 | I36: 38.33 | J36: 0.00 | K36: 0.00 | L36: 536.67
A37: 36 | B37: AYUDANTE DE MAQUINA | C37: 05-SERVIDOR/FUNCIONARIO SERVICIO PÚBLICO | D37: 7.1.05.10 | E37: N/A | F37: 460.00 | G37: 5,520.00 | H37: 38.33 | I37: 38.33 | J37: 0.00 | K37: 0.00 | L37: 536.67
A38: 37 | B38: ASISTENTE ADMINISTRATIVO REG PROPIEDAD | C38: 05-SERVIDOR/FUNCIONARIO SERVICIO PÚBLICO | D38: 5.1.01.05 | E38: N/A | F38: 622.00 | G38: 7,464.00 | H38: 51.83 | I38: 38.33 | J38: 0.00 | K38: 0.00 | L38: 712.17
A39: 38 | B39: ASISTENTE TECNICO DE CONTABILIDAD | C39: 05-SERVIDOR/FUNCIONARIO SERVICIO PÚBLICO | D39: 7.1.05.10 | E39: N/A | F39: 755.00 | G39: =F39*12 -> 9,060.00 | H39: =F39/12 -> 62.92 | I39: =460/12 -> 38.33 | J39: 0.00 | K39: 0.00 | L39: =F39+H39+I39 -> 856.25
A40: 39 | B40: MECANICO REVISOR ASISTENTE TECNICO DE REVISION VEHICULAR | C40: 05-SERVIDOR/FUNCIONARIO SERVICIO PÚBLICO | D40: 7.1.05.10 | E40: N/A | F40: 755.00 | G40: =F40*12 -> 9,060.00 | H40: =F40/12 -> 62.92 | I40: =460/12 -> 38.33 | J40: 0.00 | K40: 0.00 | L40: =F40+H40+I40 -> 856.25
A41: 40 | B41: ALCALDE DEL GAD CHUNCHI | C41: 05-SERVIDOR/FUNCIONARIO SERVICIO PÚBLICO | D41: 7.1.01.05 | E41: N/A | F41: 3500.00 | G41: =F41*12 -> 42,000.00 | H41: =F41/12 -> 291.67 | I41: =460/12 -> 38.33 | J41: 0.00 | K41: 0.00 | L41: =F41+H41+I41 -> 3830.00
A42: 41 | B42: EDUCADORA CDI CHUNCHI ROSARIO VALLEJO | C42: 05-SERVIDOR/FUNCIONARIO SERVICIO PÚBLICO | D42: 7.1.05.10 | E42: N/A | F42: 460.00 | G42: 5,520.00 | H42: 38.33 | I42: 38.33 | J42: 0.00 | K42: 0.00 | L42: 536.67
A43: 42 | B43: ANALISTA DE PLANIFICACION PATRIMONIO AVALUOS Y CATASTROS | C43: 05-SERVIDOR/FUNCIONARIO SERVICIO PÚBLICO | D43: 7.1.05.10 | E43: N/A | F43: 820.00 | G43: 9,840.00 | H43: 68.33 | I43: 38.33 | J43: 0.00 | K43: 0.00 | L43: 926.67
A44: 43 | B44: SECRETARIO MUNICIPAL | C44: 05-SERVIDOR/FUNCIONARIO SERVICIO PÚBLICO | D44: 5.1.01.06 | E44: N/A | F44: 1110.00 | G44: 13,320.00 | H44: 92.50 | I44: 38.33 | J44: 0.00 | K44: 0.00 | L44: 1240.83
A45: 44 | B45: AUXILIAR ADMINISTRATIVO DE DESARROLLO AGROPECUARIO | C45: 05-SERVIDOR/FUNCIONARIO SERVICIO PÚBLICO | D45: 5.1.01.05 | E45: N/A | F45: 570.00 | G45: 6,840.00 | H45: 47.50 | I45: 38.33 | J45: 0.00 | K45: 0.00 | L45: 655.83
A46: 45 | B46: AGENTE MUNICIPAL DE CONTROL | C46: 05-SERVIDOR/FUNCIONARIO SERVICIO PÚBLICO | D46: 5.1.01.05 | E46: N/A | F46: 528.00 | G46: 6,336.00 | H46: 44.00 | I46: 38.33 | J46: 0.00 | K46: 0.00 | L46: 610.33
A47: 46 | B47: JEFE ADMINISTRATIVO Y COMPRAS PUBLICAS | C47: 05-SERVIDOR/FUNCIONARIO SERVICIO PÚBLICO | D47: 7.1.05.10 | E47: N/A | F47: 1110.00 | G47: 13,320.00 | H47: 92.50 | I47: 38.33 | J47: 0.00 | K47: 0.00 | L47: 1240.83
A48: 47 | B48: PROMOTOR DEL PROYECTO CIUDADES HERMANAS NEWARK-NJ-CHUNCHI ECUADOR | C48: 05-SERVIDOR/FUNCIONARIO SERVICIO PÚBLICO | D48: 5.1.01.05 | E48: N/A | F48: 460.00 | G48: 5,520.00 | H48: 38.33 | I48: 38.33 | J48: 0.00 | K48: 0.00 | L48: 536.67
A49: 48 | B49: ASISTENTE ADMINISTRATIVO DE OBRAS PUBLICAS | C49: 05-SERVIDOR/FUNCIONARIO SERVICIO PÚBLICO | D49: 7.1.05.10 | E49: N/A | F49: 570.00 | G49: 6,840.00 | H49: 47.50 | I49: 38.33 | J49: 0.00 | K49: 0.00 | L49: 655.83
A50: 49 | B50: CONTADORA | C50: 05-SERVIDOR/FUNCIONARIO SERVICIO PÚBLICO | D50: 7.1.05.10 | E50: N/A | F50: 920.00 | G50: 11,040.00 | H50: 76.67 | I50: 38.33 | J50: 0.00 | K50: 0.00 | L50: 1035.00
A51: 50 | B51: TÉCNICA EN PSICOLOGÍA EDUCATIVA ATENCIÓN A NIÑOS (AS)Y ADOLESCENTES CAPNNEE | C51: 05-SERVIDOR/FUNCIONARIO SERVICIO PÚBLICO | D51: 5.1.01.05 | E51: N/A | F51: 622.00 | G51: 7,464.00 | H51: 51.83 | I51: 38.33 | J51: 0.00 | K51: 0.00 | L51: 712.17
A52: 51 | B52: REGISTRADOR DE LA PROPIEDAD | C52: 05-SERVIDOR/FUNCIONARIO SERVICIO PÚBLICO | D52: 7.1.05.10 | E52: N/A | F52: 1920.00 | G52: 23,040.00 | H52: 160.00 | I52: 38.33 | J52: 0.00 | K52: 0.00 | L52: 2118.33
A53: 52 | B53: COMISARIO MUNICIPAL | C53: 05-SERVIDOR/FUNCIONARIO SERVICIO PÚBLICO | D53: 7.1.05.10 | E53: N/A | F53: 820.00 | G53: 9,840.00 | H53: 68.33 | I53: 38.33 | J53: 0.00 | K53: 0.00 | L53: 926.67
A54: 53 | B54: MECANICO DE TALLER MUNICIPAL | C54: 05-SERVIDOR/FUNCIONARIO SERVICIO PÚBLICO | D54: 5.1.01.06 | E54: N/A | F54: 755.00 | G54: 9,060.00 | H54: 62.92 | I54: 38.33 | J54: 0.00 | K54: 0.00 | L54: 856.25
A55: 54 | B55: AUXILIAR ADMINISTRATIVO DE OBRAS PUBLICAS | C55: 05-SERVIDOR/FUNCIONARIO SERVICIO PÚBLICO | D55: 5.1.01.05 | E55: N/A | F55: 570.00 | G55: 6,840.00 | H55: 47.50 | I55: 38.33 | J55: 0.00 | K55: 0.00 | L55: 655.83
A56: 55 | B56: ASISTENTE ADMINISTRATIVO AMBIENTAL | C56: 05-SERVIDOR/FUNCIONARIO SERVICIO PÚBLICO | D56: 7.1.05.10 | E56: N/A | F56: 622.00 | G56: 7,464.00 | H56: 51.83 | I56: 38.33 | J56: 0.00 | K56: 0.00 | L56: 712.17
A57: 56 | B57: PROMOTOR AGRICOLA Y MANTENIMIENTO DE AREAS VERDES | C57: 05-SERVIDOR/FUNCIONARIO SERVICIO PÚBLICO | D57: 5.1.01.05 | E57: N/A | F57: 820.00 | G57: 9,840.00 | H57: 68.33 | I57: 38.33 | J57: 0.00 | K57: 0.00 | L57: 926.67
A58: 57 | B58: CONCEJAL URBANO | C58: 05-SERVIDOR/FUNCIONARIO SERVICIO PÚBLICO | D58: 7.1.05.10 | E58: N/A | F58: 1750.00 | G58: 21,000.00 | H58: 145.83 | I58: 38.33 | J58: 0.00 | K58: 0.00 | L58: 1934.17
A59: 58 | B59: ASISTENTE ADMINISTRATIVO 1 | C59: 05-SERVIDOR/FUNCIONARIO SERVICIO PÚBLICO | D59: 7.1.05.10 | E59: N/A | F59: 622.00 | G59: 7,464.00 | H59: 51.83 | I59: 38.33 | J59: 0.00 | K59: 0.00 | L59: 712.17
A60: 59 | B60: ASISTENTE ADMINISTRATIVO DE SECRETARIA Y ATENCION AL PUBLICO | C60: 05-SERVIDOR/FUNCIONARIO SERVICIO PÚBLICO | D60: 5.1.01.05 | E60: N/A | F60: 622.00 | G60: =F60*12 -> 7,464.00 | H60: =F60/12 -> 51.83 | I60: 38.33 | J60: 0.00 | K60: 0.00 | L60: =F60+H60+I60 -> 712.17
A61: 60 | B61: ASISTENTE ADMINISTRATIVO DE PLANIFICACION PATRIMONIO AVALUOS Y CATASTROS | C61: 05-SERVIDOR/FUNCIONARIO SERVICIO PÚBLICO | D61: 5.1.01.05 | E61: N/A | F61: 622.00 | G61: 7,464.00 | H61: 51.83 | I61: 38.33 | J61: 0.00 | K61: 0.00 | L61: 712.17
A62: 61 | B62: ASISTENTE ADMINISTRATIVO DE PROVEEDURIA | C62: 05-SERVIDOR/FUNCIONARIO SERVICIO PÚBLICO | D62: 7.1.05.10 | E62: N/A | F62: 622.00 | G62: 7,464.00 | H62: 51.83 | I62: 38.33 | J62: 0.00 | K62: 0.00 | L62: 712.17
A63: 62 | B63: ANALISTA JURIDICO | C63: 05-SERVIDOR/FUNCIONARIO SERVICIO PÚBLICO | D63: 7.1.05.10 | E63: N/A | F63: 820.00 | G63: 9,840.00 | H63: 68.33 | I63: 38.33 | J63: 0.00 | K63: 0.00 | L63: 926.67
A64: 63 | B64: COORDINADOR INSTITUCIONAL | C64: 05-SERVIDOR/FUNCIONARIO SERVICIO PÚBLICO | D64: 7.1.05.10 | E64: N/A | F64: 1670.00 | G64: 20,040.00 | H64: 139.17 | I64: 38.33 | J64: 0.00 | K64: 0.00 | L64: 1847.50
A65: 64 | B65: ANALISTA DE SEGURIDAD Y SALUD OCUPACIONAL E INDUSTRIAL | C65: 05-SERVIDOR/FUNCIONARIO SERVICIO PÚBLICO | D65: 7.1.05.10 | E65: N/A | F65: 820.00 | G65: 9,840.00 | H65: 68.33 | I65: 38.33 | J65: 0.00 | K65: 0.00 | L65: 926.67
A66: 65 | B66: CONCEJAL RURAL | C66: 05-SERVIDOR/FUNCIONARIO SERVICIO PÚBLICO | D66: 5.1.01.05 | E66: N/A | F66: 1750.00 | G66: 21,000.00 | H66: 145.83 | I66: 38.33 | J66: 0.00 | K66: 0.00 | L66: 1934.17
A67: 66 | B67: ABOGADA DE COACTIVAS | C67: 05-SERVIDOR/FUNCIONARIO SERVICIO PÚBLICO | D67: 7.1.05.10 | E67: N/A | F67: 820.00 | G67: 9,840.00 | H67: 68.33 | I67: =460/12 -> 38.33 | J67: 0.00 | K67: 0.00 | L67: 926.67
A68: 67 | B68: MIEMBRO 3 DE LA JUNTA CANTONAL DE PROTECCION DE DERECHOS | C68: 05-SERVIDOR/FUNCIONARIO SERVICIO PÚBLICO | D68: 5.1.01.05 | E68: N/A | F68: 622.00 | G68: 7,464.00 | H68: 51.83 | I68: 38.33 | J68: 0.00 | K68: 0.00 | L68: 712.17
A69: 68 | B69: ASISTENTE ADMINISTRATIVO TESORERIA" | C69: 05-SERVIDOR/FUNCIONARIO SERVICIO PÚBLICO | D69: 5.1.01.05 | E69: N/A | F69: 622.00 | G69: =F69*12 -> 7,464.00 | H69: 51.83 | I69: 38.33 | J69: 0.00 | K69: 0.00 | L69: =F69+H69+I69 -> 712.17
A70: 69 | B70: ADMINISTRADOR DE BIENES | C70: 05-SERVIDOR/FUNCIONARIO SERVICIO PÚBLICO | D70: 5.1.01.05 | E70: N/A | F70: 820.00 | G70: 9,840.00 | H70: =F70/12 -> 68.33 | I70: 38.33 | J70: 0.00 | K70: 0.00 | L70: 926.67
A71: 70 | B71: JEFE DE TALENTO HUMANO | C71: 05-SERVIDOR/FUNCIONARIO SERVICIO PÚBLICO | D71: 5.1.01.05 | E71: N/A | F71: 1110.00 | G71: 13,320.00 | H71: 92.50 | I71: 38.33 | J71: 0.00 | K71: 0.00 | L71: 1240.83
A72: 71 | B72: ASISTENTE TECNICO DE EDUCACION | C72: 05-SERVIDOR/FUNCIONARIO SERVICIO PÚBLICO | D72: 5.1.01.05 | E72: N/A | F72: 755.00 | G72: 9,060.00 | H72: 62.92 | I72: 38.33 | J72: 0.00 | K72: 0.00 | L72: 856.25
A73: 72 | B73: ASISTENTE ADMINISTRATIVO DE ANEXOS | C73: 05-SERVIDOR/FUNCIONARIO SERVICIO PÚBLICO | D73: 7.1.05.10 | E73: N/A | F73: 622.00 | G73: 7,464.00 | H73: 51.83 | I73: 38.33 | J73: 0.00 | K73: 0.00 | L73: 712.17
A74: 73 | B74: ASISTETE ADMINISTARTIVO DE TALENTO HUMANO | C74: 05-SERVIDOR/FUNCIONARIO SERVICIO PÚBLICO | D74: 5.1.01.05 | E74: J/N | F74: 622.00 | G74: 7,464.00 | H74: 51.83 | I74: 38.33 | J74: 0.00 | K74: 0.00 | L74: 712.17
A75: 74 | B75: ANALISTA DE COMPRAS PUBLICAS | C75: 05-SERVIDOR/FUNCIONARIO SERVICIO PÚBLICO | D75: 5.1.05.10 | E75: N/A | F75: 920.00 | G75: 11,040.00 | H75: 76.67 | I75: 38.33 | J75: 0.00 | K75: 0.00 | L75: 1035.00
A76: 75 | B76: ASISTENTE ADMINISTRATIVO AULA VIRTUAL BIBLIOTECA Y ACCION SOCIA | C76: 05-SERVIDOR/FUNCIONARIO SERVICIO PÚBLICO | D76: 7.1.05.10 | E76: N/A | F76: 622.00 | G76: 7,464.00 | H76: 51.83 | I76: 38.33 | J76: 0.00 | K76: 0.00 | L76: 712.17
A77: 76 | B77: asistente administrativo de plazas y mercados | C77: 05-SERVIDOR/FUNCIONARIO SERVICIO PÚBLICO | D77: 5.1.01.05 | E77: N/A | F77: 622.00 | G77: 7,464.00 | H77: 51.83 | I77: 38.33 | J77: 0.00 | K77: 0.00 | L77: 712.17
A78: 77 | B78: ANALISTA DE TURISMO | C78: 05-SERVIDOR/FUNCIONARIO SERVICIO PÚBLICO | D78: 5.1.01.05 | E78: N/A | F78: 820.00 | G78: 9,840.00 | H78: 68.33 | I78: 38.33 | J78: 0.00 | K78: 0.00 | L78: 926.67
A79: 78 | B79: ASITENTE ADMINISTRATIVO DE LA UNIDAD DE TRANSITO | C79: 05-SERVIDOR/FUNCIONARIO SERVICIO PÚBLICO | D79: 5.1.01.05 | E79: N/A | F79: 622.00 | G79: 7,464.00 | H79: 51.83 | I79: 38.33 | J79: 0.00 | K79: 0.00 | L79: 712.17
A80: 79 | B80: AUXILIAR ADMINISTRATIVO DE COACTIVAS | C80: 05-SERVIDOR/FUNCIONARIO SERVICIO PÚBLICO | D80: 7.1.01.05 | E80: N/A | F80: 570.00 | G80: 6,840.00 | H80: 47.50 | I80: 38.33 | J80: 0.00 | K80: 0.00 | L80: 655.83
A81: 80 | B81: ASISTENTE ADMINISTRATIVO DE RENTAS" | C81: 05-SERVIDOR/FUNCIONARIO SERVICIO PÚBLICO | D81: 7.1.05.10 | E81: N/A | F81: 622.00 | G81: 7,464.00 | H81: 51.83 | I81: 38.33 | J81: 0.00 | K81: 0.00 | L81: 712.17
A82: 81 | B82: ASISTENTE TECNICO DE ACCION SOCIAL, RECREACION CULTURAL Y DEPORTE | C82: 05-SERVIDOR/FUNCIONARIO SERVICIO PÚBLICO | D82: 5.1.01.05 | E82: N/A | F82: 755.00 | G82: 9,060.00 | H82: 62.92 | I82: 38.33 | J82: 0.00 | K82: 0.00 | L82: 856.25
A83: 82 | B83: INSTRUCTOR DE DANZA BAILO TERAPI FUTBOL USO ADECUADO DEL TIEMPO LIBRE | C83: 05-SERVIDOR/FUNCIONARIO SERVICIO PÚBLICO | D83: 5.1.01.05 | E83: N/A | F83: 520.00 | G83: 6,240.00 | H83: 43.33 | I83: 38.33 | J83: 0.00 | K83: 0.00 | L83: 601.67
A84: 83 | B84: JEFE DE LA UNIDAD TECNICA MUNICIPAL DE TRANSPORTE TERRESTRE | C84: 05-SERVIDOR/FUNCIONARIO SERVICIO PÚBLICO | D84: 5.1.01.05 | E84: N/A | F84: 1110.00 | G84: 13,320.00 | H84: 92.50 | I84: 38.33 | J84: 0.00 | K84: 0.00 | L84: 1240.83
A85: 84 | B85: EDUCADORA CDI CHUNCHI ROSARIO VALLEJO | C85: 05-SERVIDOR/FUNCIONARIO SERVICIO PÚBLICO | D85: 7.1.01.05 | E85: N/A | F85: 460.00 | G85: 5,520.00 | H85: 38.33 | I85: 38.33 | J85: 0.00 | K85: 0.00 | L85: 536.67
A86: 85 | B86: CONCEJAL RURAL | C86: 05-SERVIDOR/FUNCIONARIO SERVICIO PÚBLICO | D86: 7.1.05.10 | E86: N/A | F86: 1750.00 | G86: 21,000.00 | H86: 145.83 | I86: 38.33 | J86: 0.00 | K86: 0.00 | L86: 1934.17
A87: 86 | B87: PROMOTOR SOCIAL ATENCION DOMICILIARIA ATENCION ADULTOS MAYORES | C87: 05-SERVIDOR/FUNCIONARIO SERVICIO PÚBLICO | D87: 7.1.01.05 | E87: N/A | F87: 986.00 | G87: 11,832.00 | H87: 82.17 | I87: 38.33 | J87: 0.00 | K87: 0.00 | L87: 1106.50
A88: 87 | B88: EDUCADORA CDI SEMILLITAS DE GONZOL | C88: 05-SERVIDOR/FUNCIONARIO SERVICIO PÚBLICO | D88: 7.1.05.10 | E88: N/A | F88: 460.00 | G88: 5,520.00 | H88: 38.33 | I88: 38.33 | J88: 0.00 | K88: 0.00 | L88: 536.67
A89: 88 | B89: ASISTENTE TECNICO DEL REGISTRO DE LA PROPIEDAD | C89: 05-SERVIDOR/FUNCIONARIO SERVICIO PÚBLICO | D89: 5.1.01.05 | E89: N/A | F89: 590.00 | G89: 7,080.00 | H89: 49.17 | I89: 38.33 | J89: 0.00 | K89: 0.00 | L89: 677.50
A90: 89 | B90: RECAUDADOR 2 | C90: 05-SERVIDOR/FUNCIONARIO SERVICIO PÚBLICO | D90: 5.1.01.05 | E90: N/A | F90: 755.00 | G90: 9,060.00 | H90: 62.92 | I90: 38.33 | J90: 0.00 | K90: 0.00 | L90: 856.25
A91: 90 | B91: DIRECTOR DE OBRAS PUBLICAS | C91: 05-SERVIDOR/FUNCIONARIO SERVICIO PÚBLICO | D91: 7.1.05.10 | E91: N/A | F91: 1670.00 | G91: 20,040.00 | H91: 139.17 | I91: 38.33 | J91: 0.00 | K91: 0.00 | L91: 1847.50
A92: 91 | B92: FISCALIZADOR | C92: 05-SERVIDOR/FUNCIONARIO SERVICIO PÚBLICO | D92: 7.1.05.10 | E92: N/A | F92: 820.00 | G92: 9,840.00 | H92: 68.33 | I92: 38.33 | J92: 0.00 | K92: 0.00 | L92: 926.67
A93: 92 | B93: FACILITADOR ATENCION EN EL HOGAR Y COMUNIDAD | C93: 05-SERVIDOR/FUNCIONARIO SERVICIO PÚBLICO | D93: 7.1.01.05 | E93: N/A | F93: 733.00 | G93: 8,796.00 | H93: 61.08 | I93: 38.33 | J93: 0.00 | K93: 0.00 | L93: 832.42
A94: 93 | B94: CUIDADOR DEL CENTRO GERONTOLOGICO | C94: 05-SERVIDOR/FUNCIONARIO SERVICIO PÚBLICO | D94: 7.1.05.10 | E94: N/A | F94: 675.00 | G94: 8,100.00 | H94: 56.25 | I94: 38.33 | J94: 0.00 | K94: 0.00 | L94: 769.58
A95: 94 | B95: EDUCADORA CDI LLAGOS SEMILLITAS DEL PUÑAY | C95: 05-SERVIDOR/FUNCIONARIO SERVICIO PÚBLICO | D95: 5.1.01.05 | E95: N/A | F95: 460.00 | G95: 5,520.00 | H95: 38.33 | I95: 38.33 | J95: 0.00 | K95: 0.00 | L95: 536.67
A96: 95 | B96: TESORERO | C96: 05-SERVIDOR/FUNCIONARIO SERVICIO PÚBLICO | D96: 7.1.05.10 | E96: N/A | F96: 1110.00 | G96: 13,320.00 | H96: 92.50 | I96: 38.33 | J96: 0.00 | K96: 0.00 | L96: 1240.83
A97: 96 | B97: EDUCADORA CDI GONZOL | C97: 05-SERVIDOR/FUNCIONARIO SERVICIO PÚBLICO | D97: 7.1.05.10 | E97: N/A | F97: 460.00 | G97: 5,520.00 | H97: 38.33 | I97: 38.33 | J97: 0.00 | K97: 0.00 | L97: 536.67
A98: 97 | B98: INSTRUCTOR DE MUSICA | C98: 05-SERVIDOR/FUNCIONARIO SERVICIO PÚBLICO | D98: 5.1.01.05 | E98: N/A | F98: 520.00 | G98: 6,240.00 | H98: 43.33 | I98: 38.33 | J98: 0.00 | K98: 0.00 | L98: 601.67
A99: 98 | B99: ASISTENTE TECNICO FINANCIERA | C99: 05-SERVIDOR/FUNCIONARIO SERVICIO PÚBLICO | D99: 5.1.01.05 | E99: N/A | F99: 755.00 | G99: 9,060.00 | H99: 62.92 | I99: 38.33 | J99: 0.00 | K99: 0.00 | L99: 856.25
A100: 99 | B100: ASISTENTE ADMINISTRATIVO DEL COMPLEJO TURISTICO LA FAMILIA | C100: 05-SERVIDOR/FUNCIONARIO SERVICIO PÚBLICO | D100: 7.1.01.05 | E100: N/A | F100: 622.00 | G100: 7,464.00 | H100: 51.83 | I100: 38.33 | J100: 0.00 | K100: 0.00 | L100: 712.17
A101: 100 | B101: AUXILIAR DE SERVICIOS SECRETARIA | C101: 05-SERVIDOR/FUNCIONARIO SERVICIO PÚBLICO | D101: 7.1.05.10 | E101: N/A | F101: 460.00 | G101: 5,520.00 | H101: 38.33 | I101: 38.33 | J101: 0.00 | K101: 0.00 | L101: 536.67
A102: 101 | B102: AUXILIAR ADMINISTRATIVO DE AVALUOS Y CATASTROS | C102: 05-SERVIDOR/FUNCIONARIO SERVICIO PÚBLICO | D102: 7.1.05.10 | E102: N/A | F102: 570.00 | G102: 6,840.00 | H102: 47.50 | I102: 38.33 | J102: 0.00 | K102: 0.00 | L102: 655.83
A103: 102 | B103: EDUCADORA CDI CHUNCHI ROSARIO VALLEJO | C103: 05-SERVIDOR/FUNCIONARIO SERVICIO PÚBLICO | D103: 7.1.05.10 | E103: N/A | F103: 460.00 | G103: 5,520.00 | H103: 38.33 | I103: 38.33 | J103: 0.00 | K103: 0.00 | L103: 536.67
A104: 103 | B104: ASISTENTE ADMINISTRATIVO B BODEGA | C104: 05-SERVIDOR/FUNCIONARIO SERVICIO PÚBLICO | D104: 7.1.05.10 | E104: N/A | F104: 622.00 | G104: 7,464.00 | H104: 51.83 | I104: 38.33 | J104: 0.00 | K104: 0.00 | L104: 712.17
A105: 104 | B105: FACILITADOR ATENCION EN EL HOGAR Y LA COMUNIDAD DISCAPACIDAD | C105: 05-SERVIDOR/FUNCIONARIO SERVICIO PÚBLICO | D105: 7.1.05.10 | E105: N/A | F105: 733.00 | G105: 8,796.00 | H105: 61.08 | I105: 38.33 | J105: 0.00 | K105: 0.00 | L105: 832.42
A106: 105 | B106: JEFE DE DESARROLLO AGROPECIARIO | C106: 05-SERVIDOR/FUNCIONARIO SERVICIO PÚBLICO | D106: 7.1.05.10 | E106: N/A | F106: 1110.00 | G106: 13,320.00 | H106: 92.50 | I106: 38.33 | J106: 0.00 | K106: 0.00 | L106: 1240.83
A107: 106 | B107: ASISTENTE ADAMINISTRATIVO DE COMISARIA | C107: 05-SERVIDOR/FUNCIONARIO SERVICIO PÚBLICO | D107: 5.1.01.05 | E107: N/A | F107: 622.00 | G107: 7,464.00 | H107: 51.83 | I107: 38.33 | J107: 0.00 | K107: 0.00 | L107: 712.17
A108: 107 | B108: EDUCADORA CDI CHUNCHI ROSARIO VALLEJO | C108: 05-SERVIDOR/FUNCIONARIO SERVICIO PÚBLICO | D108: 7.1.05.10 | E108: N/A | F108: 460.00 | G108: 5,520.00 | H108: 38.33 | I108: 38.33 | J108: 0.00 | K108: 0.00 | L108: 536.67
A109: 108 | B109: EDUCADORA CDI SEMILLITAS DE GONZOL | C109: 05-SERVIDOR/FUNCIONARIO SERVICIO PÚBLICO | D109: 7.1.05.10 | E109: N/A | F109: 460.00 | G109: 5,520.00 | H109: 38.33 | I109: 38.33 | J109: 0.00 | K109: 0.00 | L109: 536.67
A110: 109 | B110: INSPECTOR SANITARIO PARA EL CENTRO DE FAENAMIENTO | C110: 05-SERVIDOR/FUNCIONARIO SERVICIO PÚBLICO | D110: 5.1.01.05 | E110: N/A | F110: 1110.00 | G110: 13,320.00 | H110: 92.50 | I110: 38.33 | J110: 0.00 | K110: 0.00 | L110: 1240.83
A111: 110 | B111: EDUCADORA CDI LLAGOS SEMILLITAS DEL PUÑAY | C111: 05-SERVIDOR/FUNCIONARIO SERVICIO PÚBLICO | D111: 5.1.01.05 | E111: J/N | F111: 460.00 | G111: 5,520.00 | H111: 38.33 | I111: 38.33 | J111: 0.00 | K111: 0.00 | L111: 536.67
A112: 111 | B112: TECNICO DE LA DIRECCION DE PLANIFICACION PATRIMONIO AVALUOS Y CATASTROS | C112: 05-SERVIDOR/FUNCIONARIO SERVICIO PÚBLICO | D112: 7.1.05.10 | E112: N/A | F112: 820.00 | G112: 9,840.00 | H112: 68.33 | I112: 38.33 | J112: 0.00 | K112: 0.00 | L112: 926.67
A113: 112 | B113: SECRETARIA AJECUTIVA PROT.DERECHOS | C113: 05-SERVIDOR/FUNCIONARIO SERVICIO PÚBLICO | D113: 7.1.05.10 | E113: N/A | F113: 820.00 | G113: 9,840.00 | H113: 68.33 | I113: 38.33 | J113: 0.00 | K113: 0.00 | L113: 926.67
A114: 113 | B114: CHOFER DE ALCALDIA | C114: 06-CODIGO DEL TRABAJO - CT | D114: 5.1.01.06 | E114: N/A | G114: 0 | H114: 0.00 | I114: 38.33 | J114: 0.00 | K114: 0.00 | L114: 38.33
A115: 114 | B115: OPERADOR RETROEXCAVADORA | C115: 06-CODIGO DEL TRABAJO - CT | D115: 7.1.01.06 | E115: N/A | F115: 460.00 | G115: 5,520.00 | H115: 38.33 | I115: 38.33 | J115: 0.00 | K115: 0.00 | L115: 536.67
A116: 115 | B116: operador tractor agricola | C116: 06-CODIGO DEL TRABAJO - CT | D116: 7.1.01.06 | E116: N/A | F116: 622.00 | G116: 7,464.00 | H116: 51.83 | I116: 38.33 | J116: 0.00 | K116: 0.00 | L116: 712.17
A117: 116 | B117: AUXILIAR DE SERVICIOS | C117: 06-CODIGO DEL TRABAJO - CT | D117: 7.1.01.06 | E117: N/A | F117: 733.00 | G117: 8,796.00 | H117: 61.08 | I117: 38.33 | J117: 0.00 | K117: 0.00 | L117: 832.42
A118: 117 | B118: AUXILIAR DE SERVICIOS BARRIDO Y RECOLECCION | C118: 06-CODIGO DEL TRABAJO - CT | D118: 7.1.01.06 | E118: N/A | F118: 850.00 | G118: 10,200.00 | H118: 70.83 | I118: 38.33 | J118: 0.00 | K118: 0.00 | L118: 959.17
A119: 118 | B119: GUARDIA | C119: 06-CODIGO DEL TRABAJO - CT | D119: 7.1.01.06 | E119: N/A | F119: 622.00 | G119: 7,464.00 | H119: 51.83 | I119: 38.33 | J119: 0.00 | K119: 0.00 | L119: 712.17
A120: 119 | B120: BARRENDERO | C120: 06-CODIGO DEL TRABAJO - CT | D120: 7.1.01.06 | E120: N/A | F120: 460.00 | G120: 5,520.00 | H120: 38.33 | I120: 38.33 | J120: 0.00 | K120: 0.00 | L120: 536.67
A121: 120 | B121: AUXILIAR DE SERVICIOS | C121: 06-CODIGO DEL TRABAJO - CT | D121: 7.1.01.06 | E121: N/A | F121: 460.00 | G121: 5,520.00 | H121: 38.33 | I121: 38.33 | J121: 0.00 | K121: 0.00 | L121: 536.67
A122: 121 | B122: AUXILIAR DE SERVICIOS GUARDIANIA | C122: 06-CODIGO DEL TRABAJO - CT | D122: 7.1.01.06 | E122: N/A | F122: 1110.00 | G122: 13,320.00 | H122: 92.50 | I122: 38.33 | J122: 0.00 | K122: 0.00 | L122: 1240.83
A123: 122 | B123: MATARIFE | C123: 06-CODIGO DEL TRABAJO - CT | D123: 7.1.01.06 | E123: N/A | F123: 460.00 | G123: 5,520.00 | H123: 38.33 | I123: 38.33 | J123: 0.00 | K123: 0.00 | L123: 536.67
A124: 123 | B124: AUXILIAR DE SERVICIOS BARRIDO Y RECOLECCION | C124: 06-CODIGO DEL TRABAJO - CT | D124: 7.1.01.06 | E124: N/A | F124: 820.00 | G124: 9,840.00 | H124: 68.33 | I124: 38.33 | J124: 0.00 | K124: 0.00 | L124: 926.67
A125: 124 | B125: CHOFER VEHICULOS LIVIANOS | C125: 06-CODIGO DEL TRABAJO - CT | D125: 5.1.01.06 | E125: N/A | F125: 570.00 | G125: 6,840.00 | H125: 47.50 | I125: 38.33 | J125: 0.00 | K125: 0.00 | L125: 655.83
A126: 125 | B126: CHOFER | C126: 06-CODIGO DEL TRABAJO - CT | D126: 7.1.01.06 | E126: N/A | F126: 708.00 | G126: 8,496.00 | H126: 59.00 | I126: 38.33 | J126: 0.00 | K126: 0.00 | L126: 805.33
A127: 126 | B127: AUXILIAR DE SERVICIOS | C127: 06-CODIGO DEL TRABAJO - CT | D127: 7.1.01.06 | E127: N/A | F127: 708.00 | G127: 8,496.00 | H127: 59.00 | I127: 38.33 | J127: 0.00 | K127: 0.00 | L127: 805.33
A128: 127 | B128: ALBAÑIL | C128: 06-CODIGO DEL TRABAJO - CT | D128: 7.1.01.06 | E128: N/A | F128: 531.00 | G128: 6,372.00 | H128: 44.25 | I128: 38.33 | J128: 0.00 | K128: 0.00 | L128: 613.58
A129: 128 | B129: AUXILIAR DE SERVICIOS BARRIDO Y RECOLECCION | C129: 06-CODIGO DEL TRABAJO - CT | D129: 7.1.01.06 | E129: N/A | F129: 460.00 | G129: 5,520.00 | H129: 38.33 | I129: 38.33 | J129: 0.00 | K129: 0.00 | L129: 536.67
A130: 129 | B130: AUXILIAR DE SERVICIOS BARRIDO Y RECOLECCION | C130: 06-CODIGO DEL TRABAJO - CT | D130: 5.1.01.06 | E130: N/A | F130: 531.00 | G130: 6,372.00 | H130: 44.25 | I130: 38.33 | J130: 0.00 | K130: 0.00 | L130: 613.58
A131: 130 | B131: AUXILIAR DE SERVICIOS GUARDIANIA | C131: 06-CODIGO DEL TRABAJO - CT | D131: 7.1.01.06 | E131: N/A | F131: 548.00 | G131: 6,576.00 | H131: 45.67 | I131: =460/12 -> 38.33 | J131: 0.00 | K131: 0.00 | L131: 632.00
A132: 131 | B132: AUXILIAR CITADOR | C132: 06-CODIGO DEL TRABAJO - CT | D132: 7.1.01.06 | E132: N/A | F132: 460.00 | G132: 5,520.00 | H132: 38.33 | I132: 38.33 | J132: 0.00 | K132: 0.00 | L132: 536.67
A133: 132 | B133: GUARDIAN | C133: 06-CODIGO DEL TRABAJO - CT | D133: 7.1.01.06 | E133: N/A | F133: 460.00 | G133: =F133*12 -> 5,520.00 | H133: 38.33 | I133: 38.33 | J133: 0.00 | K133: 0.00 | L133: =F133+H133+I133 -> 536.67
A134: 133 | B134: CHOFER E | C134: 06-CODIGO DEL TRABAJO - CT | D134: 7.1.01.06 | E134: N/A | F134: 460.00 | G134: 5,520.00 | H134: =F134/12 -> 38.33 | I134: 38.33 | J134: 0.00 | K134: 0.00 | L134: 536.67
A135: 134 | B135: LAVADORA DE VISCERAS | C135: 06-CODIGO DEL TRABAJO - CT | D135: 7.1.01.06 | E135: N/A | F135: 460.00 | G135: 5,520.00 | H135: 38.33 | I135: 38.33 | J135: 0.00 | K135: 0.00 | L135: 536.67
A136: 135 | B136: CHOFER | C136: 06-CODIGO DEL TRABAJO - CT | D136: 5.1.01.06 | E136: N/A | F136: 566.00 | G136: 6,792.00 | H136: 47.17 | I136: 38.33 | J136: 0.00 | K136: 0.00 | L136: 651.50
A137: 136 | B137: LAVADOR DE VISCERAS | C137: 06-CODIGO DEL TRABAJO - CT | D137: 7.1.01.06 | E137: N/A | F137: 570.00 | G137: 6,840.00 | H137: 47.50 | I137: 38.33 | J137: 0.00 | K137: 0.00 | L137: 655.83
A138: 137 | B138: CHOFER | C138: 06-CODIGO DEL TRABAJO - CT | D138: 7.1.01.06 | E138: N/A | F138: 531.00 | G138: 6,372.00 | H138: 44.25 | I138: 38.33 | J138: 0.00 | K138: 0.00 | L138: 613.58
A139: 138 | B139: MATARIFE | C139: 06-CODIGO DEL TRABAJO - CT | D139: 7.1.01.06 | E139: N/A | F139: 548.00 | G139: 6,576.00 | H139: 45.67 | I139: 38.33 | J139: 0.00 | K139: 0.00 | L139: 632.00
A140: 139 | B140: CHOFER | C140: 06-CODIGO DEL TRABAJO - CT | D140: 7.1.01.06 | E140: N/A | F140: 460.00 | G140: 5,520.00 | H140: 38.33 | I140: 38.33 | J140: 0.00 | K140: 0.00 | L140: 536.67
A141: 140 | B141: GUARDIAN PARQUE 3 | C141: 06-CODIGO DEL TRABAJO - CT | D141: 5.1.01.06 | E141: N/A | F141: 460.00 | G141: 5,520.00 | H141: 38.33 | I141: 38.33 | J141: 0.00 | K141: 0.00 | L141: 536.67
A142: 141 | B142: LAVADOR DE VISCERAS | C142: 06-CODIGO DEL TRABAJO - CT | D142: 5.1.01.06 | E142: N/A | F142: 531.00 | G142: 6,372.00 | H142: 44.25 | I142: 38.33 | J142: 0.00 | K142: 0.00 | L142: 613.58
A143: 142 | B143: MATARIFE | C143: 06-CODIGO DEL TRABAJO - CT | D143: 7.1.01.06 | E143: N/A | F143: 531.00 | G143: 6,372.00 | H143: 44.25 | I143: 38.33 | J143: 0.00 | K143: 0.00 | L143: 613.58
A144: 143 | B144: AYUDANTE DE LA PLATAFORMA | C144: 06-CODIGO DEL TRABAJO - CT | D144: 5.1.01.06 | E144: N/A | F144: 584.00 | G144: 7,008.00 | H144: 48.67 | I144: 38.33 | J144: 0.00 | K144: 0.00 | L144: 671.00
A145: 144 | B145: AYUDANTE DE MAQUINARIA | C145: 06-CODIGO DEL TRABAJO - CT | D145: 7.1.01.06 | E145: N/A | F145: 460.00 | G145: 5,520.00 | H145: 38.33 | I145: 38.33 | J145: 0.00 | K145: 0.00 | L145: 536.67
A146: 145 | B146: GUARDIA MUNICIPAL | C146: 06-CODIGO DEL TRABAJO - CT | D146: 7.1.01.06 | E146: N/A | F146: 570.00 | G146: 6,840.00 | H146: 47.50 | I146: 38.33 | J146: 0.00 | K146: 0.00 | L146: 655.83
A147: 146 | B147: AUXILIAR DE SERVICIOS | C147: 06-CODIGO DEL TRABAJO - CT | D147: 7.1.01.06 | E147: N/A | F147: 460.00 | G147: 5,520.00 | H147: 38.33 | I147: 38.33 | J147: 0.00 | K147: 0.00 | L147: 536.67
A148: 147 | B148: AUXILIAR DE SERVICIOS BARRIDO Y RECOLECCION | C148: 06-CODIGO DEL TRABAJO - CT | D148: 7.1.01.06 | E148: N/A | F148: 570.00 | G148: 6,840.00 | H148: 47.50 | I148: 38.33 | J148: 0.00 | K148: 0.00 | L148: 655.83
A149: 148 | B149: POLICIA MUNICIPAL | C149: 06-CODIGO DEL TRABAJO - CT | D149: 7.1.01.06 | E149: N/A | F149: 531.00 | G149: 6,372.00 | H149: 44.25 | I149: 38.33 | J149: 0.00 | K149: 0.00 | L149: 613.58
A150: 149 | B150: AUXILIAR DE SERVICIOS DEL CEMENTERIO | C150: 06-CODIGO DEL TRABAJO - CT | D150: 7.1.01.06 | E150: J/N | F150: 460.00 | G150: 5,520.00 | H150: 38.33 | I150: 38.33 | J150: 0.00 | K150: 0.00 | L150: 536.67
A151: 150 | B151: BARRENDERO 6 | C151: 06-CODIGO DEL TRABAJO - CT | D151: 7.1.01.06 | E151: N/A | F151: 460.00 | G151: 5,520.00 | H151: 38.33 | I151: 38.33 | J151: 0.00 | K151: 0.00 | L151: 536.67
A152: 151 | B152: MATARIFE | C152: 06-CODIGO DEL TRABAJO - CT | D152: 7.1.01.06 | E152: N/A | F152: 460.00 | G152: 5,520.00 | H152: 38.33 | I152: 38.33 | J152: 0.00 | K152: 0.00 | L152: 536.67
A153: 152 | B153: OPERADOR MOTONIVELADORA | C153: 06-CODIGO DEL TRABAJO - CT | D153: 7.1.01.06 | E153: N/A | F153: 460.00 | G153: 5,520.00 | H153: 38.33 | I153: 38.33 | J153: 0.00 | K153: 0.00 | L153: 536.67
A154: 153 | B154: OPERADOR MINICARGADORA | C154: 06-CODIGO DEL TRABAJO - CT | D154: 7.1.01.06 | E154: N/A | F154: 460.00 | G154: 5,520.00 | H154: 38.33 | I154: 38.33 | J154: 0.00 | K154: 0.00 | L154: 536.67
A155: 154 | B155: AUXILIAR DE SERVICIOS | C155: 06-CODIGO DEL TRABAJO - CT | D155: 7.1.01.06 | E155: N/A | F155: 460.00 | G155: 5,520.00 | H155: 38.33 | I155: 38.33 | J155: 0.00 | K155: 0.00 | L155: 536.67
A156: 155 | B156: AUXILIAR DE SERVICIOS | C156: 06-CODIGO DEL TRABAJO - CT | D156: 7.1.01.06 | E156: N/A | F156: 460.00 | G156: 5,520.00 | H156: 38.33 | I156: 38.33 | J156: 0.00 | K156: 0.00 | L156: 536.67
A157: 156 | B157: AUXILIAR DE SERVICIOS COMPLEJO LA FAMILIA | C157: 06-CODIGO DEL TRABAJO - CT | D157: 7.1.01.06 | E157: N/A | F157: 460.00 | G157: 5,520.00 | H157: 38.33 | I157: 38.33 | J157: 0.00 | K157: 0.00 | L157: 536.67
A158: 157 | B158: OPERADOR DEL TRACTOR | C158: 06-CODIGO DEL TRABAJO - CT | D158: 5.1.01.06 | E158: N/A | F158: 566.00 | G158: 6,792.00 | H158: 47.17 | I158: 38.33 | J158: 0.00 | K158: 0.00 | L158: 651.50
A159: 158 | B159: AYUDANTE DEL TALLER SOLDADOR 1 | C159: 06-CODIGO DEL TRABAJO - CT | D159: 7.1.01.06 | E159: N/A | F159: 460.00 | G159: 5,520.00 | H159: 38.33 | I159: 38.33 | J159: 0.00 | K159: 0.00 | L159: 536.67
A160: 159 | B160: AUXILIAR DE ARCHIVO | C160: 06-CODIGO DEL TRABAJO - CT | D160: 7.1.01.06 | E160: N/A | F160: 531.00 | G160: 6,372.00 | H160: 44.25 | I160: 38.33 | J160: 0.00 | K160: 0.00 | L160: 613.58
A161: 160 | B161: CHOFER 7 | C161: 06-CODIGO DEL TRABAJO - CT | D161: 7.1.01.06 | E161: N/A | F161: 460.00 | G161: 5,520.00 | H161: 38.33 | I161: 38.33 | J161: 0.00 | K161: 0.00 | L161: 536.67
A162: 161 | B162: CHOFER 8 | C162: 06-CODIGO DEL TRABAJO - CT | D162: 7.1.01.06 | E162: N/A | F162: 708.00 | G162: 8,496.00 | H162: 59.00 | I162: 38.33 | J162: 0.00 | K162: 0.00 | L162: 805.33
A163: 162 | B163: CHOFER MUNICIPAL 2 | C163: 06-CODIGO DEL TRABAJO - CT | D163: 7.1.01.06 | E163: N/A | F163: 708.00 | G163: 8,496.00 | H163: 59.00 | I163: 38.33 | J163: 0.00 | K163: 0.00 | L163: 805.33
A164: 163 | B164: MATARIFE | C164: 06-CODIGO DEL TRABAJO - CT | D164: 7.1.01.06 | E164: N/A | F164: 528.00 | G164: 6,336.00 | H164: 44.00 | I164: 38.33 | J164: 0.00 | K164: 0.00 | L164: 610.33
A165: 164 | B165: GUARDIAN MUNICIPAL | C165: 06-CODIGO DEL TRABAJO - CT | D165: 7.1.01.06 | E165: N/A | F165: 460.00 | G165: 5,520.00 | H165: 38.33 | I165: 38.33 | J165: 0.00 | K165: 0.00 | L165: 536.67
A166: 165 | B166: CHOFER DE RECOLECTOR | C166: 06-CODIGO DEL TRABAJO - CT | D166: 7.1.01.06 | E166: N/A | F166: 531.00 | G166: 6,372.00 | H166: 44.25 | I166: 38.33 | J166: 0.00 | K166: 0.00 | L166: 613.58
A167: 166 | B167: CHOFER 2 | C167: 06-CODIGO DEL TRABAJO - CT | D167: 7.1.01.06 | E167: N/A | F167: 708.00 | G167: 8,496.00 | H167: 59.00 | I167: 38.33 | J167: 0.00 | K167: 0.00 | L167: 805.33
A168: 167 | B168: AUXILIAR DE SERVICIOS BARRIDO Y RECOLECCION | C168: 06-CODIGO DEL TRABAJO - CT | D168: 7.1.01.06 | E168: N/A | F168: 460.00 | G168: 5,520.00 | H168: 38.33 | I168: 38.33 | J168: 0.00 | K168: 0.00 | L168: 536.67
A169: 168 | B169: ALBAÑIL 5 | C169: 06-CODIGO DEL TRABAJO - CT | D169: 5.1.01.06 | E169: N/A | F169: 531.00 | G169: 6,372.00 | H169: 44.25 | I169: 38.33 | J169: 0.00 | K169: 0.00 | L169: 613.58
A170: 169 | B170: AUXILIAR DE SERVICIOS BARRIDO Y RECOLECCIÓN | C170: 06-CODIGO DEL TRABAJO - CT | D170: 7.1.01.06 | E170: N/A | F170: 566.00 | G170: =F170*12 -> 6,792.00 | H170: =F170/12 -> 47.17 | I170: 38.33 | J170: 0.00 | K170: 0.00 | L170: =F170+H170+I170 -> 651.50
A171: 170 | B171: AUXILIAR DE SERVICIOS BARRIDO Y RECOLECCION | C171: 06-CODIGO DEL TRABAJO - CT | D171: 7.1.01.06 | E171: N/A | F171: 566.00 | G171: 6,792.00 | H171: 47.17 | I171: 38.33 | J171: 0.00 | K171: 0.00 | L171: 651.50
A172: 171 | B172: AYUDANTE DEL TALLER 2 | C172: 06-CODIGO DEL TRABAJO - CT | D172: 7.1.01.06 | E172: N/A | F172: 584.00 | G172: 7,008.00 | H172: 48.67 | I172: 38.33 | J172: 0.00 | K172: 0.00 | L172: 671.00
A173: 172 | B173: AUXILIAR DE SERVICIOS BARRIDO Y RECOLECCION | C173: 06-CODIGO DEL TRABAJO - CT | D173: 7.1.01.06 | E173: N/A | F173: 460.00 | G173: 5,520.00 | H173: 38.33 | I173: 38.33 | J173: 0.00 | K173: 0.00 | L173: 536.67
A174: 173 | B174: OPERADOR CARGADORA | C174: 06-CODIGO DEL TRABAJO - CT | D174: 7.1.01.06 | E174: N/A | F174: 531.00 | G174: 6,372.00 | H174: 44.25 | I174: 38.33 | J174: 0.00 | K174: 0.00 | L174: 613.58
A175: 174 | B175: AUXILIAR DE SERVICIOS DE RECOLECTOR | C175: 06-CODIGO DEL TRABAJO - CT | D175: 7.1.01.06 | E175: N/A | F175: 570.00 | G175: 6,840.00 | H175: 47.50 | I175: 38.33 | J175: 0.00 | K175: 0.00 | L175: 655.83
A176: 175 | B176: AUXILIAR DE SERVICIOS BARRENDERO | C176: 06-CODIGO DEL TRABAJO - CT | D176: 7.1.01.06 | E176: N/A | F176: 566.00 | G176: 6,792.00 | H176: 47.17 | I176: 38.33 | J176: 0.00 | K176: 0.00 | L176: 651.50
A177: 176 | B177: AYUDANTE DEL TRATOR DE ORUGA | C177: 06-CODIGO DEL TRABAJO - CT | D177: 7.1.01.06 | E177: N/A | F177: 584.00 | G177: 7,008.00 | H177: 48.67 | I177: 38.33 | J177: 0.00 | K177: 0.00 | L177: 671.00
A178: 177 | B178: AUXILIAR SERVICIOS | C178: 06-CODIGO DEL TRABAJO - CT | D178: 7.1.01.06 | E178: N/A | F178: 540.00 | G178: 6,480.00 | H178: 45.00 | I178: 38.33 | J178: 0.00 | K178: 0.00 | L178: 623.33
A179: 178 | B179: AUXILIAR DE SERVICIOS BARRIDO Y RECOLECCION | C179: 06-CODIGO DEL TRABAJO - CT | D179: 7.1.01.06 | E179: N/A | F179: 460.00 | G179: 5,520.00 | H179: 38.33 | I179: 38.33 | J179: 0.00 | K179: 0.00 | L179: 536.67
A180: 179 | B180: BARRENDERO 6 | C180: 06-CODIGO DEL TRABAJO - CT | D180: 7.1.01.06 | E180: N/A | F180: 460.00 | G180: 5,520.00 | H180: 38.33 | I180: 38.33 | J180: 0.00 | K180: 0.00 | L180: 536.67
A181: 180 | B181: AUXILIAR DE SERVICIOS LIMPEZA | C181: 06-CODIGO DEL TRABAJO - CT | D181: 7.1.01.06 | E181: N/A | F181: 460.00 | G181: 5,520.00 | H181: 38.33 | I181: 38.33 | J181: 0.00 | K181: 0.00 | L181: 536.67
A182: 181 | B182: GUARDIAN DE PARQUES | C182: 06-CODIGO DEL TRABAJO - CT | D182: 7.1.01.06 | E182: N/A | F182: 708.00 | G182: 8,496.00 | H182: 59.00 | I182: 38.33 | J182: 0.00 | K182: 0.00 | L182: 805.33
A183: 182 | B183: GUARDIA DEL TALLER | C183: 06-CODIGO DEL TRABAJO - CT | D183: 7.1.01.06 | E183: N/A | F183: 460.00 | G183: 5,520.00 | H183: 38.33 | I183: 38.33 | J183: 0.00 | K183: 0.00 | L183: 536.67
A184: 183 | B184: CHOFER 9 | C184: 06-CODIGO DEL TRABAJO - CT | D184: 7.1.01.06 | E184: N/A | F184: 460.00 | G184: 5,520.00 | H184: 38.33 | I184: 38.33 | J184: 0.00 | K184: 0.00 | L184: 536.67
A185: 184 | B185: CHOFER 9 | C185: 06-CODIGO DEL TRABAJO - CT | D185: 7.1.01.06 | E185: N/A | F185: 460.00 | G185: 5,520.00 | H185: 38.33 | I185: 38.33 | J185: 0.00 | K185: 0.00 | L185: 536.67
A186: 185 | B186: MATARIFE 1 | C186: 06-CODIGO DEL TRABAJO - CT | D186: 7.1.01.06 | E186: N/A | F186: 531.00 | G186: 6,372.00 | H186: 44.25 | I186: 38.33 | J186: 0.00 | K186: 0.00 | L186: 613.58
A187: 186 | B187: GUARDIAN PARQUERO | C187: 06-CODIGO DEL TRABAJO - CT | D187: 7.1.01.06 | E187: N/A | F187: 460.00 | G187: 5,520.00 | H187: 38.33 | I187: 38.33 | J187: 0.00 | K187: 0.00 | L187: 536.67
A188: 187 | B188: CHOFER MUNICIPAL | C188: 06-CODIGO DEL TRABAJO - CT | D188: 7.1.01.06 | E188: N/A | F188: 531.00 | G188: 6,372.00 | H188: 44.25 | I188: 38.33 | J188: 0.00 | K188: 0.00 | L188: 613.58
A189: 188 | B189: AUXILIAR DE SERVICIOS | C189: 06-CODIGO DEL TRABAJO - CT | D189: 7.1.01.06 | E189: N/A | F189: 460.00 | G189: 5,520.00 | H189: 38.33 | I189: 38.33 | J189: 0.00 | K189: 0.00 | L189: 536.67
A190: 189 | B190: CHOFER | C190: 06-CODIGO DEL TRABAJO - CT | D190: 7.1.01.06 | E190: N/A | F190: 531.00 | G190: 6,372.00 | H190: 44.25 | I190: 38.33 | J190: 0.00 | K190: 0.00 | L190: 613.58
A191: 190 | B191: OPERADOR DEL TRACTOR | C191: 06-CODIGO DEL TRABAJO - CT | D191: 7.1.01.06 | E191: N/A | F191: 460.00 | G191: 5,520.00 | H191: 38.33 | I191: 38.33 | J191: 0.00 | K191: 0.00 | L191: 536.67
A192: 191 | B192: CHOFER 11 | C192: 06-CODIGO DEL TRABAJO - CT | D192: 7.1.01.06 | E192: N/A | F192: 584.00 | G192: 7,008.00 | H192: 48.67 | I192: 38.33 | J192: 0.00 | K192: 0.00 | L192: 671.00
A193: 192 | B193: AUXILIAR DE SERVICIOS GUARDIANIA | C193: 06-CODIGO DEL TRABAJO - CT | D193: 7.1.01.06 | E193: N/A | F193: 584.00 | G193: 7,008.00 | H193: 48.67 | I193: 38.33 | J193: 0.00 | K193: 0.00 | L193: 671.00
A194: 193 | B194: BARRENDERO 6 | C194: 06-CODIGO DEL TRABAJO - CT | D194: 7.1.01.06 | E194: N/A | F194: 548.00 | G194: 6,576.00 | H194: 45.67 | I194: 38.33 | J194: 0.00 | K194: 0.00 | L194: 632.00
A195: 194 | B195: OPERADOR DE MAQUINARIA | C195: 06-CODIGO DEL TRABAJO - CT | D195: 7.1.01.06 | E195: N/A | F195: 531.00 | G195: 6,372.00 | H195: 44.25 | I195: =460/12 -> 38.33 | J195: 0.00 | K195: 0.00 | L195: 613.58
A196: 195 | B196: CHOFER | C196: 06-CODIGO DEL TRABAJO - CT | D196: 7.1.01.06 | E196: N/A | F196: 570.00 | G196: 6,840.00 | H196: 47.50 | I196: 38.33 | J196: 0.00 | K196: 0.00 | L196: 655.83
A197: 196 | B197: AUXILIAR DE SERVIICOS GUARDIAN RELLENO SANITARIO | C197: 06-CODIGO DEL TRABAJO - CT | D197: 7.1.01.06 | E197: N/A | F197: 460.00 | G197: 5,520.00 | H197: 38.33 | I197: 38.33 | J197: 0.00 | K197: 0.00 | L197: 536.67
A198: 197 | B198: AUXILIAR DE SERVICIOS RECOLECTOR | C198: 06-CODIGO DEL TRABAJO - CT | D198: 7.1.01.06 | E198: N/A | F198: 708.00 | G198: 8,496.00 | H198: 59.00 | I198: 38.33 | J198: 0.00 | K198: 0.00 | L198: 805.33
A199: 198 | B199: CHOFER DEL FURGON | C199: 06-CODIGO DEL TRABAJO - CT | D199: 7.1.01.06 | E199: N/A | F199: 708.00 | G199: 8,496.00 | H199: 59.00 | I199: 38.33 | J199: 0.00 | K199: 0.00 | L199: 805.33
A200: 199 | B200: MATARIFE | C200: 06-CODIGO DEL TRABAJO - CT | D200: 7.1.01.06 | E200: N/A | F200: 584.00 | G200: 7,008.00 | H200: 48.67 | I200: 38.33 | J200: 0.00 | K200: 0.00 | L200: 671.00
... 2 more rows

Sheet 1.Metadatos (remuneración)
A1: FECHA ACTUALIZACIÓN DE LA INFORMACIÓN | B1: 2024-10-31
A2: PERIODICIDAD DE ACTUALIZACIÓN DE LA INFORMACIÓN | B2: MENSUAL
A3: UNIDAD POSEEDORA DE LA INFORMACION | B3: ÁREA ADMINISTRATIVA FINANCIERA
A4: PERSONA RESPONSABLE DE LA UNIDAD POSEEDORA DE LA INFORMACIÓN | B4: LIC. MARITZA ALVARADO BRITO
A5: CORREO ELECTRÓNICO DE LA PERSONA RESPONSABLE DE LA UNIDAD POSEEDORA DE LA INFORMACIÓN | B5: gadmch.financiero@gmail.com
A6: NÚMERO TELEFÓNICO DE LA PERSONA RESPONSABLE DE LA UNIDAD POSEEDORA DE LA INFORMACIÓN | B6: (02)936-244 ext 108
A7: LICENCIA | B7: CC-BY-4.0

Sheet 1.Diccionario (remuneración)
A1: Institución | B1: GAD MUNICIPAL DE CHUNCHI
A2: Descripción | B2: Remuneraciones salariales, licencia de servicio y comisión de servicio
A3: Nombre del Campo | B3: Descripción del campo
A4: Numeración | B4: Número secuencial que identifica cada línea de los datos
A5: Puesto Institucional | B5: Puesto ocupado por la persona servidora pública correspondiente
A6: Régimen laboral al que pertenece | B6: Conjunto de leyes, normas y regulaciones que rigen la relación de trabajo
A7: Número de partida presupuestaria | B7: Asignación presupuestaria específica que se destina para cubrir los gastos relacionados con el salario
A8: Grado jerárquico o escala al que pertenece el puesto | B8: Posición relativa del puesto dentro de una estructura organizativa o jerárquica
A9: Remuneración mensual unificada | B9: Salario mensual correspondiente al pago de la persona servidora pública
A10: Remuneración unificada (anual) | B10: Salario anual correspondiente al pago de la persona servidora pública
A11: Décimo Tercera Remuneración | B11: Salario adicional equivalente a un mes de salario completo, calculado sobre la base del promedio mensual de las remuneraciones percibidas por la persona servidora pública durante el año fiscal.
A12: Décima Cuarta Remuneración | B12: Salario adicional equivalente a un mes de salario completo, que se paga a la persona servidora pública en dos cuotas durante el año
A13: Horas suplementarias y extraordinarias | B13: Horas trabajadas que exceden la jornada laboral establecida en el contrato de trabajo, pero que no superan el límite legal establecido
A14: Encargos y subrogaciones | B14: Situaciones en las que un empleado asume temporalmente las responsabilidades y funciones de otra persona funcionaria o de un cargo superior debido a circunstancias específicas.
A15: Total ingresos adicionales | B15: Suma total de los ingresos que la persona servidora pública recibe además de su salario base o remuneración principal.
